[Event "Titled Tuesday Blitz January 31 Early 2023"]
[White "Ciuffoletti, Paolo"]
[Black "Sanchez, Robert"]
[WhiteFideId "807630"]
[BlackFideId "2034360"]
[WhiteElo "2106"]
[BlackElo "1966"]
[Result "0-1"]
[Round "06"]
[TimeControl "180+2"]
[Date "2023.01.31"]
[WhiteClock "0:00:04"]
[BlackClock "0:00:13"]

1. e4 {[%clk 0:03:00]}  d5 {[%clk 0:02:59]} 2. exd5 {[%clk 0:03:00]}  Qxd5 {[%clk 0:03:00]} 3. Nc3 {[%clk 0:03:00]}  Qe6+ {[%clk 0:03:00]} 4. Be2 {[%clk 0:02:59]}  Qg6 {[%clk 0:03:00]} 5. Nf3 {[%clk 0:02:55]}  Qxg2 {[%clk 0:02:57]} 6. Rg1 {[%clk 0:02:54]}  Qh3 {[%clk 0:02:57]} 7. d4 {[%clk 0:02:50]}  c6 {[%clk 0:02:57]} 8. Bf4 {[%clk 0:02:45]}  g6 {[%clk 0:02:56]} 9. Be5 {[%clk 0:02:39]}  Nf6 {[%clk 0:02:55]} 10. Bc4 {[%clk 0:02:20]}  h6 {[%clk 0:02:34]} 11. Qd3 {[%clk 0:02:12]}  Bf5 {[%clk 0:02:30]} 12. Qe2 {[%clk 0:02:05]}  Nbd7 {[%clk 0:02:21]} 13. O-O-O {[%clk 0:02:00]}  Bg7 {[%clk 0:02:13]} 14. Bg3 {[%clk 0:01:20]}  Nb6 {[%clk 0:01:49]} 15. Bb3 {[%clk 0:01:11]}  a5 {[%clk 0:01:44]} 16. Ne5 {[%clk 0:01:07]}  O-O {[%clk 0:01:30]} 17. Nxf7 {[%clk 0:01:03]}  Kh7 {[%clk 0:01:14]} 18. a4 {[%clk 0:00:53]}  Nbd5 {[%clk 0:01:10]} 19. Nxd5 {[%clk 0:00:47]}  cxd5 {[%clk 0:01:03]} 20. Qxe7 {[%clk 0:00:36]}  Rae8 {[%clk 0:00:57]} 21. Qxb7 {[%clk 0:00:36]}  Rb8 {[%clk 0:00:57]} 22. Bxb8 {[%clk 0:00:34]}  Rc8 {[%clk 0:00:51]} 23. Bg3 {[%clk 0:00:30]}  Qh5 {[%clk 0:00:45]} 24. Ne5 {[%clk 0:00:27]}  Qe2 {[%clk 0:00:44]} 25. Rd2 {[%clk 0:00:26]}  Qe4 {[%clk 0:00:39]} 26. f3 {[%clk 0:00:21]}  Qe3 {[%clk 0:00:38]} 27. Re1 {[%clk 0:00:20]}  Qg5 {[%clk 0:00:36]} 28. Nd3 {[%clk 0:00:19]}  Nh5 {[%clk 0:00:30]} 29. f4 {[%clk 0:00:15]}  Qg4 {[%clk 0:00:23]} 30. Ne5 {[%clk 0:00:14]}  Qh3 {[%clk 0:00:18]} 31. Bxd5 {[%clk 0:00:13]}  Nxg3 {[%clk 0:00:16]} 32. hxg3 {[%clk 0:00:13]}  Qxg3 {[%clk 0:00:17]} 33. Bb3 {[%clk 0:00:11]}  Qxe1+ {[%clk 0:00:17]} 34. Rd1 {[%clk 0:00:09]}  Qe3+ {[%clk 0:00:17]} 35. Kb1 {[%clk 0:00:09]}  Qxf4 {[%clk 0:00:16]} 36. Nd3 {[%clk 0:00:06]}  Qxd4 {[%clk 0:00:14]} 37. Re1 {[%clk 0:00:04]}  Bxd3 {[%clk 0:00:13]} 38. cxd3 {[%clk 0:00:04]}  Qxb2# {[%clk 0:00:13]} 0-1


[Site "https://www.chess.com"]

[Event "Titled Tuesday Blitz January 31 Early 2023"]
[White "Hrbek, Stepan"]
[Black "Krzywda, Andrzej"]
[WhiteFideId "393479"]
[BlackFideId "1114565"]
[WhiteElo "2306"]
[BlackElo "2223"]
[Result "0-1"]
[Round "06"]
[TimeControl "180+2"]
[Date "2023.01.31"]
[WhiteClock "0:00:01"]
[BlackClock "0:00:11"]

1. e4 {[%clk 0:03:00]}  c5 {[%clk 0:02:59]} 2. Nf3 {[%clk 0:03:01]}  Nc6 {[%clk 0:03:00]} 3. Bb5 {[%clk 0:03:01]}  g6 {[%clk 0:03:00]} 4. O-O {[%clk 0:03:00]}  Bg7 {[%clk 0:03:00]} 5. Re1 {[%clk 0:02:59]}  Nf6 {[%clk 0:03:00]} 6. e5 {[%clk 0:02:59]}  Nd5 {[%clk 0:02:59]} 7. Nc3 {[%clk 0:02:59]}  Nc7 {[%clk 0:02:58]} 8. Bxc6 {[%clk 0:03:00]}  dxc6 {[%clk 0:02:57]} 9. h3 {[%clk 0:03:01]}  Ne6 {[%clk 0:02:54]} 10. d3 {[%clk 0:02:59]}  h6 {[%clk 0:02:54]} 11. Be3 {[%clk 0:02:54]}  Nd4 {[%clk 0:02:54]} 12. Bf4 {[%clk 0:02:53]}  Be6 {[%clk 0:02:49]} 13. Nxd4 {[%clk 0:02:52]}  cxd4 {[%clk 0:02:39]} 14. Ne4 {[%clk 0:02:51]}  Qd5 {[%clk 0:02:36]} 15. Nd2 {[%clk 0:02:32]}  g5 {[%clk 0:02:27]} 16. Bg3 {[%clk 0:02:32]}  O-O-O {[%clk 0:02:18]} 17. b4 {[%clk 0:02:22]}  Kb8 {[%clk 0:02:13]} 18. a4 {[%clk 0:02:22]}  Ka8 {[%clk 0:02:12]} 19. Nc4 {[%clk 0:02:22]}  Qd7 {[%clk 0:02:06]} 20. Na5 {[%clk 0:01:54]}  Qc7 {[%clk 0:02:05]} 21. Qd2 {[%clk 0:01:50]}  Rd5 {[%clk 0:01:49]} 22. Nc4 {[%clk 0:01:45]}  Rd7 {[%clk 0:01:48]} 23. Na5 {[%clk 0:01:43]}  Rd5 {[%clk 0:01:47]} 24. Nb3 {[%clk 0:01:32]}  Bxe5 {[%clk 0:01:29]} 25. Bxe5 {[%clk 0:01:32]}  Rxe5 {[%clk 0:01:29]} 26. Nxd4 {[%clk 0:01:33]}  Bc8 {[%clk 0:01:20]} 27. a5 {[%clk 0:01:07]}  Rd8 {[%clk 0:01:16]} 28. Nb3 {[%clk 0:01:07]}  h5 {[%clk 0:01:05]} 29. Qc3 {[%clk 0:01:04]}  Red5 {[%clk 0:00:57]} 30. Nc5 {[%clk 0:00:53]}  h4 {[%clk 0:00:48]} 31. Re4 {[%clk 0:00:44]}  f5 {[%clk 0:00:46]} 32. Re6 {[%clk 0:00:21]}  Rxc5 {[%clk 0:00:40]} 33. Qxc5 {[%clk 0:00:15]}  Bxe6 {[%clk 0:00:39]} 34. Re1 {[%clk 0:00:16]}  Bd5 {[%clk 0:00:29]} 35. Rxe7 {[%clk 0:00:15]}  Qf4 {[%clk 0:00:29]} 36. Re3 {[%clk 0:00:13]}  g4 {[%clk 0:00:27]} 37. Qe7 {[%clk 0:00:14]}  Rb8 {[%clk 0:00:27]} 38. Qxh4 {[%clk 0:00:14]}  Qd6 {[%clk 0:00:23]} 39. hxg4 {[%clk 0:00:12]}  fxg4 {[%clk 0:00:24]} 40. c3 {[%clk 0:00:08]}  a6 {[%clk 0:00:19]} 41. d4 {[%clk 0:00:08]}  Rg8 {[%clk 0:00:18]} 42. Qh5 {[%clk 0:00:07]}  Qf8 {[%clk 0:00:16]} 43. Qe5 {[%clk 0:00:03]}  Rh8 {[%clk 0:00:15]} 44. Rh3 {[%clk 0:00:03]}  Rxh3 {[%clk 0:00:14]} 45. gxh3 {[%clk 0:00:03]}  gxh3 {[%clk 0:00:15]} 46. Qg5 {[%clk 0:00:02]}  Qh8 {[%clk 0:00:14]} 47. Kh2 {[%clk 0:00:02]}  Bg2 {[%clk 0:00:14]} 48. f4 {[%clk 0:00:02]}  Ka7 {[%clk 0:00:13]} 49. Qc5+ {[%clk 0:00:01]}  Ka8 {[%clk 0:00:13]} 50. Qg5 {[%clk 0:00:02]}  Qe8 {[%clk 0:00:12]} 51. f5 {[%clk 0:00:02]}  Qb8+ {[%clk 0:00:12]} 52. Kg1 {[%clk 0:00:02]}  Qd6 {[%clk 0:00:11]} 53. f6 {[%clk 0:00:01]}  Qe6 {[%clk 0:00:11]} 0-1


[Site "https://www.chess.com"]

[Event "Titled Tuesday Blitz January 31 Early 2023"]
[White "Vasques, Antonio Pedro Freixial"]
[Black "ritanovikova"]
[WhiteFideId "1908332"]
[WhiteElo "2214"]
[BlackElo "2206"]
[Result "1-0"]
[Round "06"]
[TimeControl "180+2"]
[Date "2023.01.31"]
[WhiteClock "0:00:25"]
[BlackClock "0:00:07"]

1. e4 {[%clk 0:02:57]}  d5 {[%clk 0:02:59]} 2. exd5 {[%clk 0:02:57]}  Qxd5 {[%clk 0:02:59]} 3. Nc3 {[%clk 0:02:57]}  Qd6 {[%clk 0:02:59]} 4. Bc4 {[%clk 0:02:56]}  Nf6 {[%clk 0:02:59]} 5. d3 {[%clk 0:02:57]}  Bf5 {[%clk 0:02:59]} 6. Nf3 {[%clk 0:02:57]}  c6 {[%clk 0:02:58]} 7. Bg5 {[%clk 0:02:57]}  e6 {[%clk 0:02:58]} 8. Qe2 {[%clk 0:02:52]}  Be7 {[%clk 0:02:57]} 9. O-O-O {[%clk 0:02:50]}  Nbd7 {[%clk 0:02:56]} 10. Kb1 {[%clk 0:02:50]}  O-O-O {[%clk 0:02:55]} 11. Bh4 {[%clk 0:02:50]}  Qc7 {[%clk 0:02:54]} 12. Ne4 {[%clk 0:02:47]}  Nb6 {[%clk 0:02:24]} 13. Bb3 {[%clk 0:02:45]}  Nxe4 {[%clk 0:02:16]} 14. dxe4 {[%clk 0:02:42]}  Bg4 {[%clk 0:02:08]} 15. Bg3 {[%clk 0:02:41]}  Bd6 {[%clk 0:01:55]} 16. e5 {[%clk 0:02:09]}  Bxf3 {[%clk 0:01:34]} 17. Qxf3 {[%clk 0:02:09]}  Bc5 {[%clk 0:01:30]} 18. h4 {[%clk 0:02:04]}  Bd4 {[%clk 0:01:03]} 19. c3 {[%clk 0:01:59]}  Bc5 {[%clk 0:00:57]} 20. h5 {[%clk 0:01:58]}  h6 {[%clk 0:00:57]} 21. Qg4 {[%clk 0:01:57]}  Rhg8 {[%clk 0:00:53]} 22. f4 {[%clk 0:01:55]}  Nd5 {[%clk 0:00:47]} 23. Qf3 {[%clk 0:01:31]}  Ne3 {[%clk 0:00:44]} 24. Rxd8+ {[%clk 0:01:30]}  Rxd8 {[%clk 0:00:44]} 25. Bf2 {[%clk 0:01:30]}  Qb6 {[%clk 0:00:41]} 26. Bxe3 {[%clk 0:01:30]}  Bxe3 {[%clk 0:00:40]} 27. f5 {[%clk 0:01:30]}  Kb8 {[%clk 0:00:20]} 28. fxe6 {[%clk 0:01:25]}  fxe6 {[%clk 0:00:21]} 29. Bxe6 {[%clk 0:01:20]}  Rd2 {[%clk 0:00:20]} 30. Qf8+ {[%clk 0:01:20]}  Rd8 {[%clk 0:00:20]} 31. Qe7 {[%clk 0:01:15]}  a6 {[%clk 0:00:17]} 32. Bb3 {[%clk 0:00:59]}  a5 {[%clk 0:00:17]} 33. Rd1 {[%clk 0:00:51]}  Rxd1+ {[%clk 0:00:16]} 34. Bxd1 {[%clk 0:00:52]}  Bc5 {[%clk 0:00:14]} 35. Qd7 {[%clk 0:00:47]}  Ba3 {[%clk 0:00:12]} 36. Bb3 {[%clk 0:00:45]}  a4 {[%clk 0:00:10]} 37. bxa3 {[%clk 0:00:39]}  axb3 {[%clk 0:00:10]} 38. Qd6+ {[%clk 0:00:32]}  Ka8 {[%clk 0:00:09]} 39. Qd4 {[%clk 0:00:27]}  c5 {[%clk 0:00:08]} 40. Qa4+ {[%clk 0:00:26]}  Kb8 {[%clk 0:00:08]} 41. Qxb3 {[%clk 0:00:27]}  Qe6 {[%clk 0:00:07]} 42. Qxe6 {[%clk 0:00:25]} 1-0


[Site "https://www.chess.com"]

[Event "Titled Tuesday Blitz January 31 Early 2023"]
[White "Ardila, Oscar Humberto"]
[Black "Kirillov, Dmitry"]
[WhiteFideId "4404742"]
[BlackFideId "34180572"]
[WhiteElo "1982"]
[BlackElo "2179"]
[Result "0-1"]
[Round "06"]
[TimeControl "180+2"]
[Date "2023.01.31"]
[WhiteClock "0:00:01"]
[BlackClock "0:00:03"]

1. d4 {[%clk 0:02:58]}  d5 {[%clk 0:02:59]} 2. c4 {[%clk 0:02:57]}  e6 {[%clk 0:02:58]} 3. Nc3 {[%clk 0:02:58]}  Bb4 {[%clk 0:02:57]} 4. Bd2 {[%clk 0:02:57]}  dxc4 {[%clk 0:02:53]} 5. Qa4+ {[%clk 0:02:56]}  Nc6 {[%clk 0:02:51]} 6. e3 {[%clk 0:02:56]}  Bd7 {[%clk 0:02:42]} 7. Qc2 {[%clk 0:02:26]}  Bxc3 {[%clk 0:02:31]} 8. Qxc3 {[%clk 0:02:26]}  b5 {[%clk 0:02:30]} 9. a4 {[%clk 0:02:27]}  a6 {[%clk 0:02:29]} 10. Nf3 {[%clk 0:02:24]}  Nf6 {[%clk 0:02:27]} 11. Qc2 {[%clk 0:02:17]}  Nd5 {[%clk 0:02:18]} 12. Be2 {[%clk 0:02:10]}  O-O {[%clk 0:01:56]} 13. O-O {[%clk 0:02:09]}  Nb6 {[%clk 0:01:52]} 14. axb5 {[%clk 0:02:00]}  axb5 {[%clk 0:01:53]} 15. b3 {[%clk 0:02:01]}  e5 {[%clk 0:01:25]} 16. dxe5 {[%clk 0:01:54]}  Be6 {[%clk 0:01:24]} 17. bxc4 {[%clk 0:01:53]}  Nxc4 {[%clk 0:01:22]} 18. Bc3 {[%clk 0:01:50]}  b4 {[%clk 0:01:06]} 19. Bd4 {[%clk 0:01:49]}  b3 {[%clk 0:01:06]} 20. Qc3 {[%clk 0:01:47]}  b2 {[%clk 0:00:56]} 21. Rxa8 {[%clk 0:01:43]}  Qxa8 {[%clk 0:00:55]} 22. Bxc4 {[%clk 0:01:43]}  Rb8 {[%clk 0:00:39]} 23. Bd3 {[%clk 0:01:32]}  Rb3 {[%clk 0:00:34]} 24. Qc2 {[%clk 0:01:30]}  Nb4 {[%clk 0:00:34]} 25. Bxh7+ {[%clk 0:01:26]}  Kh8 {[%clk 0:00:32]} 26. Qb1 {[%clk 0:01:26]}  Bd5 {[%clk 0:00:17]} 27. Nd2 {[%clk 0:01:23]}  Ra3 {[%clk 0:00:08]} 28. Qxb2 {[%clk 0:01:20]}  Kxh7 {[%clk 0:00:08]} 29. Qxb4 {[%clk 0:01:19]}  Bxg2 {[%clk 0:00:08]} 30. Qb1+ {[%clk 0:01:12]}  Kg8 {[%clk 0:00:05]} 31. Re1 {[%clk 0:00:18]}  Ra6 {[%clk 0:00:06]} 32. Nf1 {[%clk 0:00:13]}  Be4 {[%clk 0:00:04]} 33. Qc1 {[%clk 0:00:11]}  Rg6+ {[%clk 0:00:03]} 34. Ng3 {[%clk 0:00:10]}  Bf5 {[%clk 0:00:03]} 35. Qc5 {[%clk 0:00:09]}  Bh3 {[%clk 0:00:03]} 36. e4 {[%clk 0:00:09]}  Qa2 {[%clk 0:00:02]} 37. Qc3 {[%clk 0:00:08]}  Qe6 {[%clk 0:00:02]} 38. Qf3 {[%clk 0:00:07]}  Bg4 {[%clk 0:00:02]} 39. Qf4 {[%clk 0:00:07]}  Bh3 {[%clk 0:00:02]} 40. Qh4 {[%clk 0:00:07]}  Rh6 {[%clk 0:00:03]} 41. Qd8+ {[%clk 0:00:06]}  Kh7 {[%clk 0:00:03]} 42. Qg5 {[%clk 0:00:06]}  Rg6 {[%clk 0:00:03]} 43. Qh4+ {[%clk 0:00:06]}  Rh6 {[%clk 0:00:03]} 44. Qf4 {[%clk 0:00:06]}  Rg6 {[%clk 0:00:03]} 45. Be3 {[%clk 0:00:06]}  Rh6 {[%clk 0:00:02]} 46. Qg5 {[%clk 0:00:04]}  Rg6 {[%clk 0:00:03]} 47. Qh4+ {[%clk 0:00:04]}  Kg8 {[%clk 0:00:03]} 48. f4 {[%clk 0:00:01]}  Qb3 {[%clk 0:00:03]} 0-1


[Site "https://www.chess.com"]

[Event "Titled Tuesday Blitz January 31 Early 2023"]
[White "Matveeva, Olga"]
[Black "Adithya A Chullikkad"]
[WhiteFideId "24107018"]
[BlackFideId "45078734"]
[WhiteElo "2128"]
[BlackElo "2259"]
[Result "1-0"]
[Round "06"]
[TimeControl "180+2"]
[Date "2023.01.31"]
[WhiteClock "0:00:06"]
[BlackClock "0:00:35"]

1. d4 {[%clk 0:03:00]}  Nf6 {[%clk 0:02:54]} 2. c4 {[%clk 0:03:00]}  c6 {[%clk 0:02:52]} 3. Nf3 {[%clk 0:03:00]}  d5 {[%clk 0:02:53]} 4. Qb3 {[%clk 0:02:59]}  dxc4 {[%clk 0:02:53]} 5. Qxc4 {[%clk 0:03:00]}  Be6 {[%clk 0:02:53]} 6. Qc2 {[%clk 0:02:58]}  g6 {[%clk 0:02:50]} 7. Nc3 {[%clk 0:02:56]}  Bg7 {[%clk 0:02:50]} 8. g3 {[%clk 0:02:56]}  O-O {[%clk 0:02:51]} 9. Bg2 {[%clk 0:02:56]}  Nbd7 {[%clk 0:02:50]} 10. O-O {[%clk 0:02:56]}  Nb6 {[%clk 0:02:50]} 11. e4 {[%clk 0:02:44]}  Qd7 {[%clk 0:02:42]} 12. Rd1 {[%clk 0:02:34]}  Rfd8 {[%clk 0:02:41]} 13. Ne5 {[%clk 0:02:32]}  Qe8 {[%clk 0:02:40]} 14. b3 {[%clk 0:02:21]}  Nfd7 {[%clk 0:02:36]} 15. f4 {[%clk 0:02:16]}  Nxe5 {[%clk 0:02:35]} 16. fxe5 {[%clk 0:02:15]}  c5 {[%clk 0:02:27]} 17. d5 {[%clk 0:02:13]}  Bxe5 {[%clk 0:02:27]} 18. dxe6 {[%clk 0:02:00]}  Rxd1+ {[%clk 0:02:26]} 19. Qxd1 {[%clk 0:01:33]}  Bxc3 {[%clk 0:02:26]} 20. Rb1 {[%clk 0:01:26]}  fxe6 {[%clk 0:02:22]} 21. Be3 {[%clk 0:01:22]}  Rd8 {[%clk 0:02:22]} 22. Qe2 {[%clk 0:01:18]}  Bd4 {[%clk 0:02:22]} 23. a4 {[%clk 0:01:08]}  e5 {[%clk 0:01:55]} 24. a5 {[%clk 0:01:04]}  Nc8 {[%clk 0:01:55]} 25. Bh3 {[%clk 0:01:02]}  Qf7 {[%clk 0:01:42]} 26. Kh1 {[%clk 0:00:56]}  Nd6 {[%clk 0:01:42]} 27. Bh6 {[%clk 0:00:50]}  Kh8 {[%clk 0:01:17]} 28. Qd3 {[%clk 0:00:19]}  Qe8 {[%clk 0:01:15]} 29. Rf1 {[%clk 0:00:17]}  Qc6 {[%clk 0:01:13]} 30. Bg2 {[%clk 0:00:16]}  Qb5 {[%clk 0:01:14]} 31. Qf3 {[%clk 0:00:14]}  Qe8 {[%clk 0:01:03]} 32. Bh3 {[%clk 0:00:14]}  Qg8 {[%clk 0:01:02]} 33. Bg4 {[%clk 0:00:11]}  a6 {[%clk 0:00:54]} 34. h4 {[%clk 0:00:10]}  Ne8 {[%clk 0:00:37]} 35. Be6 {[%clk 0:00:07]}  Qxe6 {[%clk 0:00:36]} 36. Qf8+ {[%clk 0:00:06]}  Qg8 {[%clk 0:00:34]} 37. Qxg8+ {[%clk 0:00:06]}  Kxg8 {[%clk 0:00:35]} 38. Rf8# {[%clk 0:00:06]} 1-0


[Site "https://www.chess.com"]

[Event "Titled Tuesday Blitz January 31 Early 2023"]
[White "Balint, Vilmos"]
[Black "kiwibobo"]
[WhiteFideId "718050"]
[WhiteElo "2169"]
[BlackElo "2040"]
[Result "0-1"]
[Round "06"]
[TimeControl "180+2"]
[Date "2023.01.31"]
[WhiteClock "0:01:13"]
[BlackClock "0:00:07"]

1. e4 {[%clk 0:03:00]}  e5 {[%clk 0:02:59]} 2. f4 {[%clk 0:03:00]}  exf4 {[%clk 0:02:59]} 3. Bc4 {[%clk 0:03:00]}  Qh4+ {[%clk 0:02:57]} 4. Kf1 {[%clk 0:02:59]}  Qh6 {[%clk 0:02:58]} 5. d4 {[%clk 0:02:59]}  d6 {[%clk 0:02:58]} 6. Nc3 {[%clk 0:02:59]}  Nc6 {[%clk 0:02:57]} 7. Nd5 {[%clk 0:02:57]}  Kd8 {[%clk 0:02:35]} 8. Bxf4 {[%clk 0:02:57]}  Qg6 {[%clk 0:02:33]} 9. Bd3 {[%clk 0:02:50]}  Nxd4 {[%clk 0:02:10]} 10. c3 {[%clk 0:02:37]}  Nc6 {[%clk 0:01:53]} 11. Nf3 {[%clk 0:02:35]}  Bg4 {[%clk 0:01:41]} 12. Qb3 {[%clk 0:02:33]}  Kc8 {[%clk 0:01:34]} 13. Qa4 {[%clk 0:02:08]}  f6 {[%clk 0:01:10]} 14. Ba6 {[%clk 0:02:06]}  Bd7 {[%clk 0:00:59]} 15. Bb5 {[%clk 0:01:59]}  Ne5 {[%clk 0:00:37]} 16. Bxd7+ {[%clk 0:01:51]}  Nxd7 {[%clk 0:00:38]} 17. Qa5 {[%clk 0:01:49]}  b6 {[%clk 0:00:21]} 18. Qa6+ {[%clk 0:01:49]}  Kd8 {[%clk 0:00:18]} 19. Re1 {[%clk 0:01:35]}  Nc5 {[%clk 0:00:18]} 20. Qc4 {[%clk 0:01:33]}  Ne7 {[%clk 0:00:14]} 21. b4 {[%clk 0:01:33]}  Nxd5 {[%clk 0:00:12]} 22. Qxd5 {[%clk 0:01:33]}  Nxe4 {[%clk 0:00:06]} 23. Qxe4 {[%clk 0:01:30]}  Qxe4 {[%clk 0:00:05]} 24. Rxe4 {[%clk 0:01:30]}  Kd7 {[%clk 0:00:06]} 25. Kf2 {[%clk 0:01:30]}  g6 {[%clk 0:00:06]} 26. Rhe1 {[%clk 0:01:29]}  f5 {[%clk 0:00:06]} 27. R4e2 {[%clk 0:01:29]}  Kc6 {[%clk 0:00:05]} 28. Nd4+ {[%clk 0:01:29]}  Kb7 {[%clk 0:00:05]} 29. b5 {[%clk 0:01:29]}  Bg7 {[%clk 0:00:05]} 30. Re7 {[%clk 0:01:24]}  Bf6 {[%clk 0:00:05]} 31. Rf7 {[%clk 0:01:22]}  Rhf8 {[%clk 0:00:05]} 32. Rxf8 {[%clk 0:01:19]}  Rxf8 {[%clk 0:00:05]} 33. Re6 {[%clk 0:01:19]}  g5 {[%clk 0:00:05]} 34. Be3 {[%clk 0:01:17]}  f4 {[%clk 0:00:04]} 35. Bd2 {[%clk 0:01:17]}  Be5 {[%clk 0:00:05]} 36. Nc6 {[%clk 0:01:15]}  g4 {[%clk 0:00:04]} 37. Nxe5 {[%clk 0:01:15]}  dxe5 {[%clk 0:00:04]} 38. Rxe5 {[%clk 0:01:15]}  Rd8 {[%clk 0:00:04]} 39. Re6 {[%clk 0:01:13]}  Rxd2+ {[%clk 0:00:03]} 40. Kf1 {[%clk 0:01:13]}  Rd1+ {[%clk 0:00:03]} 41. Ke2 {[%clk 0:01:14]}  Rc1 {[%clk 0:00:04]} 42. Re4 {[%clk 0:01:12]}  Rc2+ {[%clk 0:00:04]} 43. Kd3 {[%clk 0:01:12]}  Rxa2 {[%clk 0:00:05]} 44. Rxf4 {[%clk 0:01:12]}  Rxg2 {[%clk 0:00:06]} 45. Rf7 {[%clk 0:01:12]}  Rxh2 {[%clk 0:00:07]} 46. Rg7 {[%clk 0:01:13]}  h5 {[%clk 0:00:06]} 47. Kc4 {[%clk 0:01:13]}  Rh3 {[%clk 0:00:05]} 48. Kb4 {[%clk 0:01:12]}  g3 {[%clk 0:00:06]} 49. c4 {[%clk 0:01:12]}  h4 {[%clk 0:00:06]} 50. c5 {[%clk 0:01:13]}  bxc5+ {[%clk 0:00:07]} 51. Kxc5 {[%clk 0:01:13]}  Rh2 {[%clk 0:00:07]} 52. Rxg3 {[%clk 0:01:13]}  hxg3 {[%clk 0:00:07]} 0-1


[Site "https://www.chess.com"]

[Event "Titled Tuesday Blitz January 31 Early 2023"]
[White "Szente Varga, Fruzsina"]
[Black "Bongo Akanga Ndjila, Barthelemy"]
[WhiteFideId "712264"]
[BlackFideId "10609431"]
[WhiteElo "2075"]
[BlackElo "1824"]
[Result "1-0"]
[Round "06"]
[TimeControl "180+2"]
[Date "2023.01.31"]
[WhiteClock "0:00:30"]
[BlackClock "0:00:09"]

1. e4 {[%clk 0:03:00]}  e6 {[%clk 0:02:53]} 2. d4 {[%clk 0:02:52]}  d5 {[%clk 0:02:53]} 3. Nd2 {[%clk 0:02:51]}  Nf6 {[%clk 0:02:52]} 4. e5 {[%clk 0:02:51]}  Nfd7 {[%clk 0:02:52]} 5. f4 {[%clk 0:02:52]}  c5 {[%clk 0:02:52]} 6. c3 {[%clk 0:02:52]}  Nc6 {[%clk 0:02:53]} 7. Ndf3 {[%clk 0:02:50]}  a6 {[%clk 0:02:53]} 8. Bd3 {[%clk 0:02:48]}  b5 {[%clk 0:02:52]} 9. Ne2 {[%clk 0:02:48]}  cxd4 {[%clk 0:02:47]} 10. cxd4 {[%clk 0:02:47]}  Qb6 {[%clk 0:02:40]} 11. O-O {[%clk 0:02:37]}  Bb7 {[%clk 0:02:27]} 12. Kh1 {[%clk 0:02:21]}  h6 {[%clk 0:02:24]} 13. f5 {[%clk 0:02:21]}  O-O-O {[%clk 0:02:24]} 14. Bd2 {[%clk 0:02:14]}  Kb8 {[%clk 0:02:23]} 15. fxe6 {[%clk 0:02:09]}  fxe6 {[%clk 0:02:19]} 16. Nf4 {[%clk 0:02:08]}  Nb4 {[%clk 0:02:07]} 17. Ng6 {[%clk 0:01:50]}  Rg8 {[%clk 0:02:04]} 18. Nxf8 {[%clk 0:01:32]}  Nxd3 {[%clk 0:01:52]} 19. Nxd7+ {[%clk 0:01:31]}  Rxd7 {[%clk 0:01:52]} 20. Qb3 {[%clk 0:01:14]}  a5 {[%clk 0:00:51]} 21. Qxd3 {[%clk 0:01:13]}  b4 {[%clk 0:00:52]} 22. Rac1 {[%clk 0:01:11]}  Ba6 {[%clk 0:00:52]} 23. Qh7 {[%clk 0:01:08]}  Rf8 {[%clk 0:00:44]} 24. Rfe1 {[%clk 0:00:58]}  Rff7 {[%clk 0:00:37]} 25. Qg8+ {[%clk 0:00:55]}  Kb7 {[%clk 0:00:36]} 26. a3 {[%clk 0:00:54]}  Ka7 {[%clk 0:00:36]} 27. axb4 {[%clk 0:00:54]}  axb4 {[%clk 0:00:35]} 28. Ra1 {[%clk 0:00:53]}  g5 {[%clk 0:00:28]} 29. Ra4 {[%clk 0:00:50]}  Rg7 {[%clk 0:00:28]} 30. Qf8 {[%clk 0:00:46]}  Rgf7 {[%clk 0:00:27]} 31. Qxb4 {[%clk 0:00:44]}  Qxb4 {[%clk 0:00:28]} 32. Bxb4 {[%clk 0:00:45]}  g4 {[%clk 0:00:25]} 33. Ng1 {[%clk 0:00:35]}  Kb7 {[%clk 0:00:25]} 34. Rea1 {[%clk 0:00:34]}  Bb5 {[%clk 0:00:18]} 35. Ra7+ {[%clk 0:00:34]}  Kb8 {[%clk 0:00:16]} 36. Bd6+ {[%clk 0:00:32]}  Kc8 {[%clk 0:00:16]} 37. Rc1+ {[%clk 0:00:31]}  Kd8 {[%clk 0:00:09]} 38. Ra8# {[%clk 0:00:30]} 1-0


[Site "https://www.chess.com"]